bitfinex-derivatives/quotes_SOLF0:USTF0_20250530
["timestamp","ask_amount","ask_price","bid_price","bid_amount"]
[1748612354471,6.19779005,162.35,162.32,6.19937967]
[1748612355268,6.1583,162.34,162.32,0.04067967]
[1748612355570,0.03979005,162.35,162.32,0.04067967]
[1748612355770,6.1584,162.34,162.32,0.04067967]
[1748612355971,0.03979005,162.35,162.32,6.19937967]
[1748612356174,0.03979005,162.35,162.32,0.04067967]
[1748612357166,0.03979005,162.35,162.34,6.1582]
[1748612359572,37.04,162.41,162.39,6.1561]
[1748612359776,37.04,162.41,162.33,17.628518]
[1748612359974,37.04,162.41,162.38,6.1566]
[1748612360277,43.1957,162.41,162.38,6.1566]
[1748612360479,43.23806551,162.41,162.38,6.19658898]
[1748612361181,37.08236551,162.41,162.38,0.03998898]
[1748612361481,37.04,162.47,162.38,0.03998898]
[1748612361681,37.04,162.47,162.4,6.1557]
[1748612361878,37.04,162.47,162.35,129.06]
[1748612362077,37.04,162.47,162.34,6.0339]
[1748612362373,0.03937692,162.42,162.39,0.04075088]
[1748612362573,37.04,162.41,162.39,0.04075088]
[1748612362782,6.1568,162.38,162.29,135.1139]
[1748612363171,6.103,162.4,162.3,17.628518]
[1748612363377,12.2589,162.4,162.3,17.628518]
[1748612363678,0.04431558,162.38,162.34,0.03973717]
[1748612363882,0.04431558,162.38,162.37,6.157]
[1748612364481,37.04,162.45,162.34,17.66825517]
[1748612364682,37.04,162.45,162.34,17.628518]
[1748612364885,43.1941,162.45,162.34,17.628518]
[1748612365085,37.04,162.45,162.34,17.628518]
[1748612365582,0.04560659,162.41,162.4,6.1559]
[1748612366386,6.20120659,162.41,162.38,0.04492094]
[1748612366584,0.04560659,162.41,162.38,0.04492094]
[1748612366778,37.04,162.4,162.38,0.04492094]
[1748612367089,6.1563,162.39,162.38,0.04492094]
[1748612367287,2.1256,162.39,162.29,6.0339]
[1748612367478,2.1256,162.39,162.28,54.668518]
[1748612367683,2.1256,162.39,162.24,186.165318]
[1748612367883,2.163,162.38,162.24,56.685318]
[1748612368080,6.1588,162.33,162.3,6.1594]
[1748612368290,0.03935793,162.33,162.3,6.19901383]
[1748612368487,0.03935793,162.33,162.3,0.03961383]
[1748612369083,0.03935793,162.33,162.32,6.1589]
[1748612371588,0.03935793,162.33,162.31,6.1593]
[1748612371792,0.03935793,162.33,162.3,0.03961383]
[1748612372690,6.19815793,162.33,162.3,6.19921383]
[1748612372883,0.03935793,162.33,162.3,6.19921383]
[1748612373084,0.03935793,162.33,162.3,0.03961383]
[1748612373288,6.1593,162.31,162.3,0.03961383]
[1748612374796,0.03935793,162.33,162.3,0.03961383]
[1748612374997,0.03935793,162.33,162.32,6.1589]
[1748612375997,0.03935793,162.33,162.21,37.04]
[1748612376193,6.1612,162.26,162.21,37.04]
[1748612376395,6.1612,162.26,162.17,56.689818]
[1748612376595,6.1612,162.26,162.17,39.0613]
[1748612376898,6.1627,162.22,162.18,6.1639]
[1748612377100,0.04235264,162.22,162.18,0.04255394]
[1748612377994,0.04235264,162.22,162.21,6.1631]
[1748612378293,0.04235264,162.22,162.18,0.04255394]
[1748612378497,0.04235264,162.22,162.2,6.1634]
[1748612378694,0.04235264,162.22,162.18,0.04255394]
[1748612378995,0.04235264,162.22,162.21,6.1631]
[1748612379298,0.04235264,162.22,162.18,0.04255394]
[1748612379499,6.20525264,162.22,162.18,6.20665394]
[1748612379693,0.04235264,162.22,162.18,0.04255394]
[1748612380898,6.1637,162.2,162.18,0.04255394]
[1748612381096,0.04235264,162.22,162.18,0.04255394]
[1748612382103,6.1634,162.21,162.18,0.04255394]
[1748612382492,0.04235264,162.22,162.18,0.04255394]
[1748612383087,6.20535264,162.22,162.18,6.20665394]
[1748612383292,0.04235264,162.22,162.18,0.04255394]
[1748612383699,6.1634,162.21,162.18,0.04255394]
[1748612384099,0.04235264,162.22,162.18,0.04255394]
[1748612384294,6.1635,162.2,162.18,0.04255394]
[1748612384694,0.04235264,162.22,162.2,6.1634]
[1748612384991,0.04235264,162.22,162.18,0.04255394]
[1748612385198,6.1638,162.2,162.18,0.04255394]
[1748612386103,0.04235264,162.22,162.18,0.04255394]
[1748612386104,6.1639,162.19,162.18,0.04255394]
[1748612387700,6.1647,162.17,162.13,6.1659]
[1748612387900,36.96,162.19,162.09,36.96]
[1748612388102,6.0364,162.18,162.09,36.96]
[1748612388603,0.04663818,162.15,162.12,0.04699493]
[1748612388900,0.04663818,162.15,162.12,6.21339493]
[1748612389802,0.04663818,162.15,162.13,6.1661]
[1748612390301,0.04663818,162.15,162.13,6.1658]
[1748612390893,0.04663818,162.15,162.12,6.21349493]
[1748612391094,0.04663818,162.15,162.12,0.04699493]
[1748612391500,0.04663818,162.15,162.14,6.1658]
[1748612392400,43.1236,162.2,162.17,6.1645]
[1748612392607,6.1636,162.2,162.17,6.1645]
[1748612392907,6.1638,162.2,162.1,17.628518]
[1748612393104,6.1638,162.2,162.17,6.1646]
[1748612393603,0.04576374,162.2,162.17,0.04718862]
[1748612394006,6.1642,162.18,162.17,0.04718862]
[1748612396407,6.1661,162.14,162.09,36.96]
[1748612396607,36.96,162.21,162.09,36.96]
[1748612396806,6.1657,162.15,162.12,6.1664]
[1748612397308,6.20564107,162.15,162.12,6.21283778]
[1748612397508,6.1658,162.14,162.12,0.04663778]
[1748612397709,0.03994107,162.15,162.12,0.04663778]
[1748612398018,6.1661,162.13,162.12,0.04663778]
[1748612398708,0.03994107,162.15,162.12,0.04663778]
[1748612398916,36.98,162.24,162.13,17.628518]
[1748612399614,6.1641,162.19,162.16,6.1648]
[1748612399814,36.98,162.24,162.16,6.1648]
[1748612400111,0.04011979,162.22,162.18,0.04193452]
[1748612400513,6.1639,162.19,162.18,0.04193452]
[1748612401304,36.98,162.19,162.04,12.3385]
[1748612401510,36.98,162.19,162.06,39.0221]
[1748612401714,36.98,162.19,162.12,6.1662]
[1748612402214,36.98,162.19,162.06,39.0221]
[1748612402412,0.03953886,162.14,162.11,0.04063859]
[1748612402813,0.03953886,162.14,162.13,6.1661]
[1748612403216,0.03953886,162.14,162.11,0.04063859]
[1748612403607,6.20553886,162.14,162.11,0.04063859]
[1748612403809,0.03953886,162.14,162.11,0.04063859]
[1748612404012,6.1665,162.12,162.11,0.04063859]
[1748612404815,36.98,162.13,162.11,0.04063859]
[1748612405218,6.1665,162.12,162.11,0.04063859]
[1748612406121,36.98,162.13,162.04,4.1692]
[1748612406321,6.1675,162.1,162.04,4.1692]
[1748612407118,0.04050732,162.09,162.05,0.04334796]
[1748612407618,6.20820732,162.09,162.05,0.04334796]
[1748612407826,0.04050732,162.09,162.05,0.04334796]
[1748612408118,6.1688,162.06,162.05,0.04334796]
[1748612408528,36.98,162.08,161.98,41.1271]
[1748612408724,43.1484,162.08,161.98,41.1271]
[1748612409021,36.98,162.08,161.98,41.1271]
[1748612409419,36.98,162.08,162.0,17.628518]
[1748612409624,0.04267471,162.05,162.01,0.04041812]
[1748612409818,0.04267471,162.05,162.04,6.1696]
[1748612410024,36.98,162.08,162.01,0.04041812]
[1748612410225,6.2601,162.17,162.01,0.04041812]
[1748612410423,36.98,162.16,162.07,6.1683]
[1748612410820,6.1671,162.11,162.07,6.1683]
[1748612411025,43.19255845,162.11,162.08,6.168]
[1748612411225,0.04545845,162.11,162.07,0.04611949]
[1748612412424,0.04545845,162.11,162.08,6.168]
[1748612412621,0.04545845,162.11,162.07,0.04611949]
[1748612412828,6.21245845,162.11,162.08,6.1678]
[1748612413027,0.04545845,162.11,162.08,6.1678]
[1748612413330,6.1673,162.1,162.07,6.21441949]
[1748612413531,0.04545845,162.11,162.07,0.04611949]
[1748612414927,6.1674,162.1,162.07,0.04611949]
[1748612415329,0.04545845,162.11,162.07,0.04611949]
[1748612415523,6.1673,162.1,162.08,6.168]
[1748612415722,0.04545845,162.11,162.07,0.04611949]
[1748612416225,0.04545845,162.11,161.99,38.7676]
[1748612416428,36.98,162.12,161.99,38.7676]
[1748612416625,6.1695,162.05,161.99,38.7676]
[1748612416831,36.78,162.07,161.99,38.7676]
[1748612417030,36.78,162.06,161.99,38.7676]
[1748612417233,0.04700472,162.04,162.02,6.1701]
[1748612417627,0.04700472,162.04,162.01,0.03977499]
[1748612417828,6.21680472,162.04,162.01,6.21027499]
[1748612418029,0.04700472,162.04,162.01,0.03977499]
[1748612418632,0.04700472,162.04,162.03,6.17]
[1748612420732,36.78,162.1,162.01,0.03977499]
[1748612421038,36.78,162.11,162.0,17.628518]
[1748612421633,6.1666,162.12,162.09,6.1677]
[1748612421940,0.04225668,162.12,162.09,0.04333475]
[1748612422733,0.04225668,162.12,162.11,6.1669]
[1748612422939,36.8,162.17,162.09,0.04333475]
[1748612423437,42.9649,162.17,162.13,6.1659]
[1748612423633,42.9649,162.17,162.08,17.628518]
[1748612424038,0.04643787,162.14,162.13,6.1662]
[1748612424240,0.04643787,162.14,162.11,0.04186477]
[1748612424841,532.74,162.27,162.12,36.78]
[1748612425046,36.78,162.26,162.13,6.0585]
[1748612425840,0.04581962,162.21,162.19,6.1637]
[1748612426245,0.04581962,162.21,162.18,0.04234802]
[1748612426539,0.04581962,162.21,162.19,6.1639]
[1748612427243,0.04581962,162.21,162.2,6.1635]
[1748612427830,0.04581962,162.21,162.19,6.1637]
[1748612428035,0.04581962,162.21,162.18,0.04234802]
[1748612429240,0.04581962,162.21,162.19,6.1638]
[1748612429441,0.04581962,162.21,162.18,0.04234802]
[1748612429740,36.78,162.26,162.19,17.628518]
[1748612429943,42.9413,162.26,162.19,17.628518]
[1748612430339,36.78,162.26,162.22,6.1625]
[1748612430545,6.162,162.24,162.19,17.628518]
[1748612430736,0.03942389,162.23,162.21,6.1629]
[1748612430933,0.03942389,162.23,162.2,0.04097813]
[1748612431436,0.03942389,162.23,162.22,6.1627]
[1748612431941,0.03942389,162.23,162.2,4.14897813]
[1748612432338,0.03942389,162.23,162.2,0.04097813]
[1748612433543,36.76,162.22,162.2,0.04097813]
[1748612433739,36.76,162.22,162.11,17.628518]
[1748612433740,36.76,162.22,162.11,19.590418]
[1748612433945,6.1654,162.15,162.08,36.76]
[1748612434248,36.76,162.18,162.08,36.76]
[1748612434746,0.04558683,162.15,162.11,0.04298391]
[1748612436747,6.1659,162.14,162.11,0.04298391]
[1748612437056,0.04558683,162.15,162.11,0.04298391]
[1748612437448,6.166,162.14,162.11,6.20978391]
[1748612437647,0.04558683,162.15,162.11,0.04298391]
[1748612438152,0.04558683,162.15,162.14,6.1658]
[1748612438550,42.9234,162.21,162.17,6.1644]
[1748612438943,36.76,162.21,162.17,6.1644]
[1748612439152,36.76,162.21,162.12,36.76]
[1748612439544,0.04216222,162.18,162.15,0.04477137]
[1748612440347,6.20666222,162.18,162.15,6.21017137]
[1748612440952,0.04216222,162.18,162.15,0.04477137]
[1748612441548,0.04216222,162.18,162.17,6.1647]
[1748612442150,6.1626,162.23,162.2,6.1633]
[1748612442351,569.2,162.25,162.16,36.76]
[1748612442746,6.1622,162.24,162.21,6.1631]
[1748612443148,0.04167876,162.24,162.21,0.03959016]
[1748612444459,0.04167876,162.24,162.23,6.1624]
[1748612446546,0.04167876,162.24,162.22,6.1626]
[1748612446752,0.04167876,162.24,162.21,0.03959016]
[1748612451856,0.04167876,162.24,162.21,6.20259016]
[1748612452463,6.20387876,162.24,162.21,6.20259016]
[1748612452865,6.1628,162.22,162.21,0.03959016]
[1748612453661,0.04167876,162.24,162.06,551.2461]
[1748612453662,6.1638,162.2,162.12,36.84]
[1748612453864,6.26,162.24,162.12,36.84]
[1748612454078,6.26,162.24,162.18,6.1641]
[1748612454261,6.1633,162.21,162.18,6.1641]
[1748612454560,6.20944782,162.21,162.18,6.2094707]
[1748612454762,0.04614782,162.21,162.18,6.2094707]
[1748612455369,6.1638,162.2,162.18,0.0453707]
[1748612456067,6.20944782,162.21,162.18,6.2094707]
[1748612456474,6.1637,162.2,162.18,0.0453707]
[1748612456667,0.04614782,162.21,162.18,0.0453707]
[1748612457072,6.1639,162.19,162.18,0.0453707]
[1748612457273,0.04614782,162.21,162.18,0.0453707]
[1748612457679,6.20934782,162.21,162.19,6.1637]
[1748612457871,0.04614782,162.21,162.19,6.1637]
[1748612458474,0.04614782,162.21,162.2,6.1635]
[1748612458779,36.86,162.3,162.18,54.5338887]
[1748612458980,36.86,162.3,162.24,6.1618]
[1748612459180,6.1607,162.28,162.24,6.1618]
[1748612459381,6.1607,162.28,162.19,6.1127]
[1748612459580,6.1607,162.28,162.25,6.1616]
[1748612459883,6.19794978,162.28,162.25,6.20230615]
[1748612460275,0.03724978,162.28,162.25,0.04070615]
[1748612460678,0.03724978,162.28,162.27,6.1609]
[1748612461389,36.84,162.36,162.31,6.1591]
[1748612461684,36.84,162.36,162.28,17.628518]
[1748612462281,36.84,162.36,162.3,0.0403822]
[1748612462885,36.84,162.36,162.31,6.1592]
[1748612463082,6.158,162.35,162.31,6.1592]
[1748612463288,36.84,162.36,162.3,0.0403822]
[1748612463484,36.84,162.36,162.3,6.1999822]
[1748612463785,36.84,162.36,162.3,0.0403822]
[1748612464987,6.1586,162.34,162.3,6.1998822]
[1748612465379,36.84,162.36,162.3,0.0403822]
[1748612466187,6.1594,162.31,162.3,0.0403822]
[1748612466781,6.161,162.27,162.24,43.0019]
[1748612466990,36.84,162.31,162.21,2.1393]
[1748612467193,4.1853,162.3,162.21,2.1393]
[1748612467486,4.1853,162.3,162.23,6.1621]
[1748612467787,6.1612,162.27,162.25,0.04657593]
[1748612467978,0.0403822,162.28,162.25,0.04657593]
[1748612468378,6.1611,162.27,162.25,0.04657593]
[1748612469284,0.0403822,162.28,162.25,0.04657593]
[1748612469793,6.2003822,162.28,162.14,17.628518]
[1748612469983,17.628518,162.29,162.12,36.84]
[1748612470183,17.628518,162.29,162.17,6.1644]
[1748612470184,6.1633,162.21,162.17,6.1644]
[1748612470383,36.84,162.22,162.12,36.84]
[1748612470681,0.0423545,162.19,162.15,0.03900374]
[1748612471583,0.0423545,162.19,162.18,6.1643]
[1748612472280,0.0423545,162.19,162.15,0.03900374]
[1748612472687,6.1645,162.18,162.15,0.03900374]
[1748612472990,0.0423545,162.19,162.15,0.03900374]
[1748612473490,0.0423545,162.19,162.18,6.1643]
[1748612474082,0.0423545,162.19,162.15,0.03900374]
[1748612474083,36.74,162.25,162.15,0.03900374]
[1748612474290,36.74,162.25,162.17,17.628518]
[1748612474482,6.1627,162.23,162.18,2.0773]
[1748612474692,36.74,162.25,162.16,36.74]
[1748612475190,0.04412883,162.22,162.19,6.2068676]
[1748612475387,0.04412883,162.22,162.19,0.0432676]
[1748612475792,0.04412883,162.22,162.21,6.1632]
[1748612476087,0.04412883,162.22,162.19,0.0432676]
[1748612476292,0.04412883,162.22,162.21,6.1632]
[1748612479795,38.7147,162.29,162.24,6.1617]
[1748612480797,38.7147,162.29,162.25,0.04378187]
[1748612482398,6.1606,162.28,162.25,0.04378187]
[1748612482593,38.7147,162.29,162.25,0.04378187]
[1748612482894,36.74,162.29,162.25,0.04378187]
[1748612483099,6.252,162.37,162.25,0.04378187]
[1748612483294,36.74,162.34,162.29,0.04269191]
[1748612483494,6.1587,162.33,162.3,6.1595]
[1748612484991,36.74,162.34,162.29,0.04269191]
[1748612485201,54.368518,162.34,162.19,40.9069]
[1748612485403,6.162,162.24,162.21,6.163]
[1748612485699,36.74,162.27,162.19,40.9069]
[1748612485900,36.74,162.27,162.2,6.1634]
[1748612486101,0.04316671,162.25,162.22,0.04566279]
[1748612486599,6.1624,162.23,162.22,0.04566279]
[1748612488299,6.1646,162.18,162.12,4.035]
[1748612488500,36.74,162.23,162.16,6.165]
[1748612488899,6.1638,162.2,162.12,40.775]
[1748612489297,0.04054825,162.18,162.14,0.04037405]
[1748612489499,6.20484825,162.18,162.14,0.04037405]
[1748612489798,0.04054825,162.18,162.14,0.04037405]
[1748612490002,0.04054825,162.18,162.17,6.1647]
[1748612490404,0.04054825,162.18,162.14,0.04037405]
[1748612490907,6.20494825,162.18,162.14,0.04037405]
[1748612491097,0.04054825,162.18,162.14,0.04037405]
[1748612492393,0.04054825,162.18,162.17,6.1647]
[1748612495202,0.04054825,162.18,162.14,0.04037405]
[1748612495501,6.20514825,162.18,162.15,6.1652]
[1748612495703,0.04054825,162.18,162.14,0.04037405]
[1748612496097,6.1648,162.17,162.14,0.04037405]
[1748612496293,0.04054825,162.18,162.14,0.04037405]
[1748612496701,6.1654,162.15,162.14,0.04037405]
[1748612496904,0.04054825,162.18,162.14,0.04037405]
[1748612497200,0.04054825,162.18,162.14,6.20587405]
[1748612497401,0.04054825,162.18,162.14,0.04037405]
[1748612497806,0.04054825,162.18,162.17,6.1647]
[1748612500407,0.04054825,162.18,162.16,6.1649]
[1748612500601,6.1649,162.17,162.14,0.04037405]
[1748612501005,6.1649,162.17,162.14,6.20607405]
[1748612501599,6.1653,162.16,162.14,0.04037405]
[1748612502103,0.04054825,162.18,162.14,0.04037405]
[1748612503902,6.1653,162.16,162.14,0.04037405]
[1748612504501,6.20504825,162.18,162.15,6.1651]
[1748612505011,0.04054825,162.18,162.15,6.1651]
[1748612505214,0.04054825,162.18,162.14,0.04037405]
[1748612505717,6.20504825,162.18,162.14,0.04037405]
[1748612505908,6.20504825,162.18,162.15,6.1652]
[1748612506108,0.04054825,162.18,162.14,0.04037405]
[1748612506309,6.1653,162.16,162.14,0.04037405]
[1748612506713,0.04054825,162.18,162.14,0.04037405]
[1748612507217,0.04054825,162.18,162.14,6.20607405]
[1748612507414,6.165,162.17,162.14,6.20607405]
[1748612507713,0.04054825,162.18,162.14,0.04037405]
[1748612508713,6.1653,162.16,162.14,0.04037405]
[1748612510307,6.1654,162.15,162.14,0.04037405]
[1748612510512,36.74,162.16,162.08,36.72]
[1748612510716,36.74,162.16,162.05,36.74]
[1748612511319,6.1675,162.1,162.07,6.1682]
[1748612511515,6.20863372,162.1,162.07,6.21093038]
[1748612511818,0.04113372,162.1,162.07,0.04273038]
[1748612512019,0.04113372,162.1,162.08,6.1681]
[1748612512519,0.04113372,162.1,162.09,6.1677]
[1748612513122,36.74,162.16,162.15,6.1654]
[1748612513524,36.74,162.16,162.09,36.74]
[1748612514024,36.74,162.16,162.14,6.1656]
[1748612514321,36.74,162.16,162.13,0.04661028]
[1748612514723,42.9053,162.16,162.13,6.21251028]
[1748612515422,6.1656,162.15,162.13,6.21251028]
[1748612515820,36.74,162.16,162.13,0.04661028]
[1748612516018,6.1657,162.15,162.13,0.04661028]
[1748612516220,36.74,162.16,162.14,6.1658]
[1748612516623,42.9051,162.16,162.13,0.04661028]
[1748612517026,42.9051,162.16,162.13,6.21261028]
[1748612517226,6.1655,162.15,162.13,0.04661028]
[1748612517830,6.1658,162.14,162.13,0.04661028]
[1748612519922,36.74,162.16,162.13,0.04661028]
[1748612520526,36.74,162.16,162.1,6.1671]
[1748612520722,36.74,162.16,162.05,165.88]
[1748612521029,36.74,162.16,162.06,17.628518]
[1748612521224,538.702,162.19,162.06,17.628518]
[1748612521427,0.04331523,162.14,162.11,0.04225801]
[1748612521829,0.04331523,162.14,162.13,6.1662]
[1748612522032,36.74,162.22,162.11,0.04225801]
[1748612522328,36.74,162.22,162.11,2.0136]
[1748612523027,0.04113559,162.18,162.15,0.04572782]
[1748612524029,0.04113559,162.18,162.17,6.1643]
[1748612524230,0.04113559,162.18,162.15,0.04572782]
[1748612525938,6.20563559,162.18,162.16,6.165]
[1748612526133,6.20563559,162.18,162.15,0.04572782]
[1748612526329,6.165,162.17,162.15,0.04572782]
[1748612526535,0.04113559,162.18,162.15,0.04572782]
[1748612528033,6.1647,162.17,162.15,0.04572782]
[1748612528234,0.04113559,162.18,162.15,0.04572782]
[1748612528431,36.78113559,162.18,162.15,0.04572782]
[1748612528636,6.1651,162.16,162.15,0.04572782]
[1748612532039,0.04113559,162.18,162.17,6.1647]
[1748612533136,0.04113559,162.18,162.16,6.1649]
[1748612533339,0.04113559,162.18,162.15,0.04572782]
[1748612533743,0.04113559,162.18,162.17,6.1647]
[1748612534847,36.7,162.29,162.17,42.86]
[1748612535038,36.7,162.29,162.18,6.3517]
[1748612535540,6.1614,162.26,162.18,6.3517]
[1748612535745,0.04609593,162.24,162.23,6.1621]
[1748612535942,0.04716191,162.25,162.23,6.1621]
[1748612536445,0.04716191,162.25,162.22,6.20312982]
[1748612536739,6.20886191,162.25,162.22,0.04052982]
[1748612536946,0.04716191,162.25,162.22,0.04052982]
[1748612537340,6.20896191,162.25,162.22,6.20312982]
[1748612537941,0.04716191,162.25,162.22,6.20312982]
[1748612538146,0.04716191,162.25,162.22,0.04052982]
[1748612538543,0.04716191,162.25,162.24,6.162]
[1748612538742,36.68,162.33,162.22,0.04052982]
[1748612538945,36.68,162.33,162.21,36.68]
[1748612539541,6.1609,162.27,162.21,36.68]
[1748612539847,36.68,162.33,162.22,0.03928277]
[1748612540208,36.68,162.33,162.26,0.04005356]
[1748612540571,6.1609,162.27,162.26,0.04005356]
[1748612540961,36.68,162.29,162.26,0.04005356]
[1748612541162,42.8401,162.29,162.26,0.04005356]
[1748612541362,36.68,162.29,162.26,0.04005356]
[1748612542658,6.1608,162.28,162.26,0.04005356]
[1748612543463,36.68,162.29,162.26,0.04005356]
[1748612544153,6.1609,162.27,162.26,0.04005356]
[1748612544455,36.68,162.29,162.26,0.04005356]
[1748612544844,6.1607,162.28,162.26,0.04005356]
[1748612545242,6.1609,162.27,162.26,0.04005356]
[1748612545443,36.68,162.29,162.26,0.04005356]
[1748612545953,6.1607,162.28,162.26,0.04005356]
[1748612547049,6.1609,162.27,162.26,0.04005356]
[1748612547846,6.1607,162.28,162.26,0.04005356]
[1748612548248,36.68,162.29,162.26,0.04005356]
[1748612548447,6.1605,162.28,162.26,0.04005356]
[1748612548654,36.68,162.29,162.26,0.04005356]
[1748612549150,42.8402,162.29,162.26,0.04005356]
[1748612549351,42.8402,162.29,162.26,6.20095356]
[1748612549748,6.1594,162.31,162.26,0.04005356]
[1748612549944,36.68,162.33,162.29,6.1601]
[1748612550155,36.68,162.4,162.29,0.04142251]
[1748612550349,36.68,162.4,162.36,6.1572]
[1748612550545,36.68,162.4,162.36,6.19689308]
[1748612550748,36.68,162.4,162.36,0.03969308]
[1748612551657,6.1571,162.37,162.36,0.03969308]
[1748612552148,6.159,162.32,162.3,36.68]
[1748612552354,6.159,162.32,162.28,2.0985]
[1748612552552,36.68,162.36,162.28,2.0985]
[1748612552856,6.1588,162.33,162.28,2.0985]
[1748612553353,0.04276046,162.32,162.29,0.04644843]
[1748612553952,6.20196046,162.32,162.29,0.04644843]
[1748612554858,0.04276046,162.32,162.29,6.20624843]
[1748612555053,0.04276046,162.32,162.29,0.04644843]
[1748612557064,6.1594,162.31,162.29,0.04644843]
[1748612559465,0.04276046,162.32,162.29,0.04644843]
[1748612560258,0.04276046,162.32,162.31,6.1594]
[1748612560965,0.04276046,162.32,162.29,0.04644843]
[1748612561458,6.20196046,162.32,162.29,6.20644843]
[1748612562063,0.04276046,162.32,162.3,6.1597]
[1748612562360,0.04276046,162.32,162.29,0.04644843]
[1748612563463,6.1596,162.31,162.29,0.04644843]
[1748612563764,0.04276046,162.32,162.29,0.04644843]
[1748612564859,2.1279,162.39,162.3,47.18582658]
[1748612565060,6.1573,162.37,162.34,6.158]
[1748612565265,6.1573,162.37,162.3,47.18582658]
[1748612565667,6.1573,162.37,162.34,6.158]
[1748612565859,6.1573,162.37,162.34,6.19828923]
[1748612566168,6.1576,162.36,162.34,6.19828923]
[1748612566367,6.1576,162.36,162.34,0.04028923]
[1748612566960,6.1578,162.35,162.34,0.04028923]
[1748612570366,6.1578,162.35,162.34,8.923e-05]
[1748612570572,10.4058,162.35,162.34,8.923e-05]
[1748612573869,6.1578,162.35,162.34,8.923e-05]
[1748612577871,36.6402,162.36,162.34,8.923e-05]
[1748612578071,0.0402,162.36,162.34,8.923e-05]
[1748612578271,0.0402,162.36,162.34,6.15808923]
[1748612578575,0.0402,162.36,162.34,8.923e-05]
[1748612579172,0.0402,162.36,162.35,6.1578]
[1748612582777,0.0402,162.36,162.34,6.15808923]
[1748612582978,6.1578,162.35,162.34,8.923e-05]
[1748612583376,12.4677,162.35,162.34,8.923e-05]
[1748612583778,12.4699,162.35,162.2,36.58]
[1748612583979,17.63047676,162.33,162.2,36.58]
[1748612584186,6.1619,162.25,162.2,36.58]
[1748612584379,36.58,162.27,162.2,36.58]
[1748612584585,36.58,162.27,162.22,6.1627]
[1748612584886,0.0388691,162.26,162.23,0.0424965]
[1748612585084,6.1617,162.25,162.23,0.0424965]
[1748612585586,6.2002691,162.26,162.23,6.2047965]
[1748612585786,0.0388691,162.26,162.23,0.0424965]
[1748612585979,6.3099,162.35,162.23,0.0424965]
[1748612586285,42.8899,162.35,162.2,36.58]
[1748612586587,6.1607,162.28,162.25,6.1614]
[1748612586786,42.8899,162.35,162.2,36.58]
[1748612587086,42.8899,162.35,162.26,0.04020238]
[1748612587983,6.1609,162.27,162.26,0.04020238]
[1748612591189,36.6,162.28,162.26,0.04020238]
[1748612591891,36.6,162.28,162.27,6.1609]
[1748612592386,36.6,162.28,162.26,0.04020238]
[1748612592581,42.7605,162.28,162.26,0.04020238]
[1748612592781,36.6,162.28,162.26,0.04020238]
[1748612594093,42.7606,162.28,162.26,0.04020238]
[1748612594293,36.6,162.28,162.26,0.04020238]
[1748612594590,36.6,162.28,162.16,568.48]
[1748612594783,4.2272,162.27,162.16,36.52]
[1748612595288,4.2272,162.27,162.12,36.52]
[1748612595586,6.1636,162.2,162.18,0.04307266]
[1748612595779,0.04162251,162.21,162.18,0.04307266]
[1748612596291,6.1639,162.19,162.18,0.04307266]
[1748612596883,6.165,162.17,162.11,6.2622]
[1748612597188,6.165,162.17,162.13,6.166]
[1748612597391,36.52,162.18,162.08,568.64]
[1748612597893,0.03996986,162.15,162.11,0.04500223]
[1748612598389,0.03996986,162.15,162.14,6.1658]
[1748612601692,36.52,162.22,162.18,6.1641]
[1748612601887,6.1633,162.21,162.18,6.1641]
[1748612602089,36.52,162.22,162.12,36.52]
[1748612602395,36.52,162.22,162.13,6.1514]
[1748612602692,0.04472531,162.19,162.16,0.04045022]
[1748612603482,0.04472531,162.19,162.18,6.1643]
[1748612605098,36.54,162.26,162.16,165.34045022]
[1748612605392,36.54,162.26,162.16,165.3]
[1748612606193,36.54,162.26,162.24,6.1617]
[1748612607297,36.54,162.26,162.23,6.20238745]
[1748612607796,36.54,162.26,162.23,0.04008745]
[1748612608684,6.162,162.24,162.23,0.04008745]